bitfinex/quotes_ETHUSD_20251110
["timestamp","ask_amount","ask_price","bid_price","bid_amount"]
[1762752220658,2.11086757,3613.2,3613.1,0.01]
[1762752220812,4.28495653,3613.2,3613.1,0.01]
[1762752221313,1.51732673,3613.2,3613.1,0.1242]
[1762752221834,0.25761473,3613.2,3613.1,0.1242]
[1762752222054,1.51732673,3613.3,3613.1,0.1242]
[1762752222265,0.25761473,3613.2,3613.1,0.01]
[1762752222448,4.28459719,3613.6,3613.5,0.001]
[1762752222650,4.28459708,3613.6,3613.5,0.001]
[1762752223055,4.77709708,3613.6,3613.5,0.001]
[1762752223438,5.24319708,3613.6,3613.5,0.001]
[1762752223638,6.04319708,3613.6,3613.5,0.001]
[1762752223840,6.36679885,3613.6,3613.5,0.001]
[1762752224040,5.90069885,3613.6,3613.5,0.001]
[1762752224470,6.49414549,3613.6,3613.5,0.001]
[1762752224676,6.96024549,3613.6,3613.5,0.001]
[1762752224844,7.61224549,3613.6,3613.5,0.001]
[1762752226773,7.14614549,3613.6,3613.5,0.001]
[1762752226973,7.61224549,3613.6,3613.5,0.001]
[1762752227174,6.00164549,3613.6,3613.5,0.1152]
[1762752227475,5.90069885,3613.6,3613.5,0.001]
[1762752227857,5.40819885,3613.6,3613.5,0.001]
[1762752228377,5.89869885,3613.6,3613.5,0.001]
[1762752228576,6.35289885,3613.6,3613.5,0.001]
[1762752228957,6.94646957,3613.6,3613.5,0.001]
[1762752229809,7.59846957,3613.6,3613.5,0.001]
[1762752230861,13.1967505,3613.6,3613.5,0.001]
[1762752231774,7.14426957,3613.6,3613.5,0.001]
[1762752231970,7.14426957,3613.6,3613.5,0.1153]
[1762752231971,3.23437294,3613.6,3613.5,0.1153]
[1762752232179,5.08452389,3613.6,3613.5,0.1153]
[1762752232419,5.57502389,3613.6,3613.5,0.001]
[1762752233399,6.02922389,3613.6,3613.5,0.001]
[1762752234406,12.22147206,3613.6,3613.5,0.001]
[1762752236267,11.76727206,3613.6,3613.5,0.001]
[1762752236711,12.24997206,3613.6,3613.5,0.001]
[1762752237423,11.76727206,3613.6,3613.5,0.001]
[1762752237626,12.24997206,3613.6,3613.5,0.001]
[1762752239414,12.99186626,3613.6,3613.5,0.001]
[1762752240445,12.24997206,3613.6,3613.5,0.001]
[1762752240845,13.73568656,3613.6,3613.5,0.001]
[1762752241900,7.65470563,3613.6,3613.5,0.001]
[1762752242098,6.65169113,3613.6,3613.5,0.001]
[1762752244548,6.16899113,3613.6,3613.5,0.001]
[1762752244742,7.16420563,3613.6,3613.5,0.001]
[1762752244947,7.64630563,3613.6,3613.5,0.001]
[1762752245262,8.12900563,3613.6,3613.5,0.001]
[1762752245449,0.6083,3612.2,3610.7,0.1153]
[1762752245651,4.0288746,3611.2,3610.7,0.1153]
[1762752245980,4.88033029,3611.2,3611.1,0.1253]
[1762752246381,2.76928769,3611.1,3610.7,0.1153]
[1762752246584,0.85145569,3611.0,3610.7,0.1153]
[1762752246745,0.25748845,3610.9,3610.7,0.1153]
[1762752246949,3.02695781,3610.8,3610.7,0.1153]
[1762752247256,1.51720045,3610.8,3610.1,0.01]
[1762752247458,1.51720045,3610.7,3610.1,0.01]
[1762752247776,2.76986696,3610.3,3610.1,0.01]
[1762752247979,0.25748845,3610.2,3610.1,0.01]
[1762752251357,0.7457752,3611.5,3610.1,0.01]
[1762752251358,0.7457752,3611.6,3610.5,2.7696797]
[1762752251566,0.655,3611.7,3610.6,0.27696797]
[1762752251751,2.76906584,3611.4,3610.6,2.7695603]
[1762752251946,2.76886595,3611.6,3610.4,0.405504]
[1762752252269,2.76892147,3611.6,3610.8,2.76946464]
[1762752252474,2.76894194,3611.5,3610.8,2.76946464]
[1762752252669,2.76877167,3611.8,3610.6,0.405504]
[1762752252670,1.259712,3611.8,3610.9,2.76936992]
[1762752252985,0.655,3612.1,3610.6,0.405504]
[1762752253280,2.7685297,3612.1,3611.2,3.17461469]
[1762752253481,2.76839167,3612.3,3611.4,2.76900083]
[1762752253684,2.76835097,3612.3,3611.5,2.76893131]
[1762752253887,5.59828093,3611.6,3610.8,0.35009934]
[1762752254089,4.02964164,3610.2,3610.1,0.01]
[1762752254291,9.62792257,3610.2,3610.1,0.01]
[1762752254489,4.02964164,3610.2,3610.1,0.01]
[1762752256089,2.7697798,3610.4,3610.1,0.01]
[1762752256287,1.259712,3610.7,3610.1,0.01]
[1762752256488,2.76972657,3610.5,3610.1,0.011]
[1762752256701,4.02932581,3610.7,3610.1,0.011]
[1762752256900,2.76979927,3610.4,3610.1,0.011]
[1762752257090,2.76984122,3610.4,3610.1,0.011]
[1762752257516,2.7697309,3610.5,3610.1,0.011]
[1762752257712,2.76992964,3610.2,3610.1,0.011]
[1762752258614,4.51174164,3610.2,3610.1,0.011]
[1762752258788,10.59272257,3610.2,3610.1,0.011]
[1762752259017,9.62792257,3610.2,3610.1,0.011]
[1762752259220,10.11002257,3610.2,3610.1,0.011]
[1762752260116,9.62792257,3610.2,3610.1,0.011]
[1762752261316,1.259712,3610.2,3610.1,0.011]
[1762752261620,2.76992964,3610.2,3610.1,0.011]
[1762752262583,2.76987818,3610.3,3610.1,0.011]
[1762752262981,2.76992964,3610.2,3610.1,0.011]
[1762752263225,3.56992964,3610.2,3610.1,0.011]
[1762752263421,3.82656127,3610.2,3610.1,0.011]
[1762752265887,3.82656127,3610.2,3609.7,0.001]
[1762752265888,11.8163542,3610.2,3609.7,0.001]
[1762752266096,9.0393175,3609.8,3609.7,0.001]
[1762752266330,9.95694913,3609.8,3609.7,0.001]
[1762752266510,10.41544913,3609.8,3609.7,0.001]
[1762752268304,11.00724465,3609.8,3609.7,0.001]
[1762752268543,10.41544913,3609.8,3609.7,0.001]
[1762752269041,4.8171682,3609.8,3609.7,0.001]
[1762752271442,5.40933181,3609.8,3609.7,0.001]
[1762752272026,3.0268682,3609.8,3609.7,0.001]
[1762752275341,3.0268682,3609.8,3609.1,2.78071616]
[1762752275514,0.25663163,3609.7,3609.6,0.001]
[1762752276533,3.02694495,3609.7,3609.6,0.001]
[1762752277538,3.49874495,3609.7,3609.6,0.001]
[1762752277723,5.81137336,3609.7,3609.6,0.001]
[1762752282260,6.55714856,3609.7,3609.6,0.001]
[1762752282456,5.81137336,3609.7,3609.6,0.001]
[1762752282661,6.55714856,3609.7,3609.6,0.001]
[1762752282832,5.81137336,3609.7,3609.6,0.001]
[1762752283358,2.7706971,3609.2,3609.1,0.01]
[1762752283675,4.09354514,3609.2,3609.1,0.01]
[1762752284051,6.55581576,3609.2,3609.1,0.01]
[1762752284368,5.81175714,3609.2,3609.1,0.01]
[1762752285414,2.77136889,3608.4,3608.1,0.01]
[1762752285533,0.25663163,3608.3,3608.1,0.01]
[1762752285864,0.25663163,3608.2,3608.1,0.01]
[1762752286772,0.25663163,3608.2,3608.1,3.1870458]
[1762752286938,0.59498479,3609.2,3608.3,0.405504]
[1762752287141,3.5141921,3609.6,3608.5,0.405504]
[1762752287142,0.59498479,3609.5,3608.5,0.405504]
[1762752287544,0.59498479,3609.5,3609.0,2.77080129]
[1762752287739,0.59498479,3609.5,3609.1,2.77074321]
[1762752287971,0.8,3609.2,3609.1,3.04781753]
[1762752288184,0.8,3609.2,3609.1,0.27707432]
[1762752288478,2.77036916,3609.7,3609.1,0.27707432]
[1762752288671,2.77039222,3609.6,3608.8,2.77093594]
[1762752288831,2.77039222,3609.6,3608.9,2.7709173]
[1762752289208,2.77039222,3609.6,3609.0,2.7708416]
[1762752289334,2.77023657,3609.8,3608.7,2.77107266]
[1762752289539,0.59544041,3609.7,3608.8,0.31765767]
[1762752289838,3.3657686,3609.7,3609.1,2.77071293]
[1762752290049,2.77039091,3609.6,3609.0,2.77084105]
[1762752290235,2.77039091,3609.6,3609.1,0.55418389]
[1762752290447,2.7702988,3609.8,3609.1,3.32495711]
[1762752290760,0.59548738,3609.7,3609.1,0.55418389]
[1762752290938,3.36573289,3609.8,3609.1,2.77075087]
[1762752291137,3.36581133,3609.7,3609.1,2.77075087]
[1762752291340,1.259712,3610.1,3608.9,2.77090166]
[1762752291341,2.77039191,3609.6,3608.9,2.77090166]
[1762752291562,2.77039604,3609.6,3609.0,2.77080359]
[1762752291854,2.77034221,3609.7,3609.0,2.77080359]
[1762752292063,4.02986856,3610.0,3609.2,2.77064893]
[1762752292224,3.36574197,3609.9,3609.2,2.77064893]
[1762752292425,0.59557666,3609.8,3609.1,0.27708036]
[1762752292621,4.10931416,3610.2,3609.3,2.77059148]
[1762752292846,3.36564887,3610.1,3609.2,2.7706971]
[1762752293047,0.8,3609.5,3609.4,2.77052698]
[1762752293734,2.77016817,3609.9,3609.2,0.30477775]
[1762752293935,2.76992964,3610.2,3608.6,3.21474426]
[1762752294136,0.59584257,3610.1,3609.5,2.7704153]
[1762752294336,0.59584257,3610.1,3609.5,2.77039573]
[1762752294553,3.36585039,3610.1,3609.5,2.77039573]
[1762752294761,0.59584257,3610.0,3609.5,2.77039573]
[1762752294962,3.36585401,3610.1,3609.5,2.77039573]
[1762752295267,0.002,3609.7,3609.5,2.77039573]
[1762752295422,0.002,3609.7,3609.5,0.55420147]
[1762752295860,0.002,3609.7,3609.5,3.32465558]
[1762752296056,0.002,3609.7,3609.6,2.77039007]
[1762752296230,0.002,3609.7,3609.5,3.32464471]
[1762752296860,0.002,3609.7,3609.6,2.77039007]
[1762752297070,0.002,3609.7,3609.6,3.40770092]
[1762752297262,0.002,3609.7,3609.6,3.78550102]
[1762752298261,0.002,3609.7,3609.6,3.76550102]
[1762752298866,0.26059391,3609.7,3609.6,3.76550102]
[1762752300569,0.002,3609.7,3609.6,3.76550102]
[1762752301433,0.002,3609.7,3609.6,3.78550102]
[1762752304241,0.002,3609.7,3609.6,3.17589407]
[1762752305269,0.002,3609.7,3609.6,2.77039007]
[1762752309143,0.002,3609.7,3609.6,3.17589407]
[1762752309344,0.002,3609.7,3609.6,3.20359797]
[1762752309547,0.002,3609.7,3609.6,3.17589407]
[1762752309742,0.002,3609.7,3609.6,3.77063561]
[1762752311684,0.002,3610.3,3610.2,3.17543364]
[1762752311899,0.002,3610.3,3610.2,0.405504]
[1762752312292,0.002,3610.3,3610.2,3.17543364]
[1762752314702,0.002,3610.3,3610.0,1.259712]
[1762752315001,0.002,3610.3,3609.4,0.001]
[1762752315002,0.002,3610.3,3609.6,0.001]
[1762752315189,0.002,3610.3,3609.8,2.77018382]
[1762752315190,0.466,3610.1,3609.8,2.77018382]
[1762752315394,0.9577,3610.1,3609.7,2.77026223]
[1762752315609,0.9577,3610.1,3609.6,0.001]
[1762752315818,0.9577,3610.1,3609.8,2.77023271]
[1762752316219,0.9577,3610.1,3609.7,2.77030872]
[1762752316525,0.4917,3610.0,3609.7,2.77030872]
[1762752317092,0.4917,3610.0,3609.6,0.001]
[1762752317093,0.25863741,3609.9,3609.6,0.001]
[1762752317293,0.466,3609.7,3609.6,0.001]
[1762752317527,0.72463741,3609.7,3609.6,0.001]
[1762752318223,0.25863741,3609.7,3609.6,2.77139007]
[1762752318417,0.002,3610.3,3609.8,2.77022442]
[1762752318605,0.25877616,3610.2,3609.7,0.02770313]
[1762752318925,0.25877616,3610.1,3610.0,2.7700831]
[1762752320203,0.25877616,3610.1,3609.9,2.77013371]
[1762752320527,0.25877616,3610.0,3609.6,0.001]
[1762752320830,0.25877616,3609.9,3609.6,0.001]
[1762752321005,0.25877616,3609.8,3609.6,0.001]
[1762752321211,0.25877616,3609.7,3609.6,0.001]
[1762752321932,1.21647616,3609.7,3609.6,0.001]
[1762752322096,1.43756378,3609.7,3609.6,0.001]
[1762752322428,0.72477616,3609.7,3609.6,0.001]
[1762752322940,3.98678948,3609.7,3609.6,0.001]
[1762752323140,1.21647616,3609.7,3609.6,0.001]
[1762752324719,0.72477616,3609.7,3609.6,0.001]
[1762752325108,1.17697616,3609.7,3609.6,0.001]
[1762752326122,1.97723992,3609.7,3609.6,0.001]
[1762752326318,1.52503992,3609.7,3609.6,0.001]
[1762752326723,5.24174213,3609.7,3609.6,0.001]
[1762752327048,1.55322881,3609.7,3609.6,0.001]
[1762752327218,1.05903992,3609.7,3609.6,0.001]
[1762752327742,0.25903992,3609.7,3609.6,0.001]
[1762752328042,0.75533992,3609.7,3609.6,0.001]
[1762752328445,3.97785324,3609.7,3609.6,0.001]
[1762752329506,4.57465642,3609.7,3609.6,0.001]
[1762752331244,5.37452234,3609.7,3609.6,0.001]
[1762752332142,2.00740584,3609.7,3609.6,0.001]
[1762752332355,4.77771916,3609.7,3609.6,0.001]
[1762752332655,5.37401855,3609.7,3609.6,0.001]
[1762752332860,4.77771916,3609.7,3609.6,0.001]
[1762752333231,6.03743116,3609.7,3609.6,0.001]
[1762752333427,6.63359295,3609.7,3609.6,0.001]
[1762752335741,6.03743116,3609.7,3609.6,0.001]
[1762752335946,6.63332246,3609.7,3609.6,0.001]
[1762752336532,6.63322133,3609.7,3609.6,0.001]
[1762752336729,6.03743116,3609.7,3609.6,0.001]
[1762752337172,6.63322083,3609.7,3609.6,0.001]
[1762752337368,6.6331298,3609.7,3609.6,0.001]
[1762752338375,10.1856562,3609.7,3609.6,0.001]
[1762752338566,5.58523116,3609.7,3609.6,0.001]
[1762752338875,2.31861784,3609.7,3609.6,0.001]
[1762752339042,5.58523116,3609.7,3609.6,0.001]
[1762752339243,2.31861784,3609.7,3609.6,0.001]
[1762752339442,1.05890584,3609.7,3609.6,0.001]
[1762752345363,1.05889409,3609.7,3609.6,0.001]
[1762752345943,4.32550741,3609.7,3609.6,0.001]
[1762752346661,1.05889409,3609.7,3609.6,0.001]
[1762752347176,4.77770741,3609.7,3609.6,0.001]
[1762752347881,5.37438955,3609.7,3609.6,0.001]
[1762752348475,7.29010155,3609.7,3609.6,0.001]
[1762752348677,8.03384077,3609.7,3609.6,0.001]
[1762752349040,7.29010155,3609.7,3609.6,0.001]
[1762752349236,8.03567425,3609.7,3609.6,0.001]
[1762752349462,7.29010155,3609.7,3609.6,0.001]
[1762752349662,8.28446848,3609.7,3609.6,0.001]
[1762752350162,8.28438259,3609.7,3609.6,0.001]
[1762752350380,7.29010155,3609.7,3609.6,0.001]
[1762752351403,8.28428159,3609.7,3609.6,0.001]
[1762752351567,8.28628159,3609.7,3609.6,0.001]
[1762752351969,7.29210155,3609.7,3609.6,0.001]
[1762752352499,8.28614227,3609.7,3609.6,0.001]
[1762752352881,17.14029476,3609.7,3609.6,0.001]
[1762752358318,17.97242035,3609.7,3609.6,0.001]
[1762752359697,16.97837963,3609.7,3609.6,0.001]
[1762752359894,17.97221349,3609.7,3609.6,0.001]
[1762752360675,18.46888987,3609.7,3609.6,0.001]
[1762752360874,17.97213784,3609.7,3609.6,0.001]
[1762752361071,16.97837963,3609.7,3609.6,0.001]
[1762752361284,2.95007841,3609.7,3609.6,0.001]
[1762752361471,14.95755706,3609.7,3609.6,0.001]
[1762752361696,16.87326906,3609.7,3609.6,0.001]
[1762752361890,16.12785404,3609.7,3609.6,0.001]
[1762752363791,17.12148499,3609.7,3609.6,0.001]
[1762752367547,11.51577592,3609.7,3609.6,0.001]
[1762752367711,5.68757814,3609.7,3609.6,0.001]
[1762752368036,10.11466609,3609.7,3609.6,0.001]
[1762752368209,8.85495409,3609.7,3609.6,0.001]
[1762752368414,1.06087068,3609.7,3609.6,0.001]
[1762752368627,8.25827195,3609.7,3609.6,0.001]
[1762752369034,5.48795863,3609.7,3609.6,0.001]
[1762752369237,8.25827195,3609.7,3609.6,0.001]
[1762752369438,8.25815719,3609.7,3609.6,0.001]
[1762752369936,3.83106924,3609.7,3609.6,0.001]
[1762752370155,5.48784387,3609.7,3609.6,0.001]
[1762752370300,8.25815719,3609.7,3609.6,0.001]
[1762752371505,14.21160831,3609.7,3609.6,0.001]
[1762752372007,9.78452036,3609.7,3609.6,0.001]
[1762752372228,9.31482036,3609.7,3609.6,0.001]
[1762752372434,8.51482036,3609.7,3609.6,0.001]
[1762752372817,8.05442036,3609.7,3609.6,0.001]
[1762752373215,8.98452036,3609.7,3609.6,0.001]
[1762752373445,13.41160831,3609.7,3609.6,0.001]
[1762752374721,14.67132031,3609.7,3609.6,0.001]
[1762752375106,15.32532031,3609.7,3609.6,0.001]
[1762752375539,10.05987233,3609.7,3609.6,0.001]
[1762752375747,9.31413236,3609.7,3609.6,0.001]
[1762752376254,6.54381904,3609.7,3609.6,0.001]
[1762752376451,0.85701909,3609.7,3609.6,0.001]
[1762752376655,0.26075592,3609.7,3609.6,0.001]
[1762752378127,3.03106924,3609.7,3609.6,0.001]
[1762752378451,0.26075592,3609.7,3609.6,0.001]
[1762752378660,3.03106924,3609.7,3609.6,0.001]
[1762752379542,4.08807048,3609.7,3609.6,0.001]
[1762752380336,8.51515843,3609.7,3609.6,0.001]
[1762752381466,8.98485843,3609.7,3609.6,0.001]
[1762752381833,8.51515843,3609.7,3609.6,0.001]
[1762752382654,8.51538504,3609.7,3609.6,0.001]
[1762752382963,5.28467172,3609.7,3609.6,0.001]
[1762752383164,0.85758377,3609.7,3609.6,0.001]
[1762752383464,3.03129585,3609.7,3609.6,0.001]
[1762752383667,3.62794587,3609.7,3609.6,0.001]
[1762752384042,8.05503382,3609.7,3609.6,0.001]
[1762752385548,5.2847205,3609.7,3609.6,0.001]
[1762752385766,8.05503382,3609.7,3609.6,0.001]
[1762752386068,7.4583838,3609.7,3609.6,0.001]
[1762752386256,8.055039,3609.7,3609.6,0.001]
[1762752387061,8.537239,3609.7,3609.6,0.001]
[1762752387248,13.41632695,3609.7,3609.6,0.001]
[1762752387672,14.67603895,3609.7,3609.6,0.001]
[1762752387855,16.22177892,3609.7,3609.6,0.001]
[1762752388057,16.33271853,3609.7,3609.6,0.001]
[1762752388258,15.58697856,3609.7,3609.6,0.001]
[1762752388465,15.58698841,3609.7,3609.6,0.001]
[1762752390280,16.33283167,3609.7,3609.6,0.001]
[1762752391257,15.88083167,3609.7,3609.6,0.001]
[1762752391744,16.33283167,3609.7,3609.6,0.001]
[1762752392344,15.58698841,3609.7,3609.6,0.001]
[1762752392576,15.58715182,3609.7,3609.6,0.001]
[1762752392949,16.58078277,3609.7,3609.6,0.001]
[1762752393148,16.12878277,3609.7,3609.6,0.001]
[1762752393367,15.58715182,3609.7,3609.6,0.001]
[1762752393752,16.58078277,3609.7,3609.6,0.001]
[1762752394183,15.13515182,3609.7,3609.6,0.001]
[1762752394510,10.11492426,3609.7,3609.6,0.001]
[1762752397686,7.34461094,3609.7,3609.6,0.001]
[1762752397890,8.85521226,3609.7,3609.6,0.001]
[1762752403091,9.78941226,3609.7,3609.6,0.001]
[1762752403372,14.21650021,3609.7,3609.6,0.001]
[1762752403567,16.22244732,3609.7,3609.6,0.001]
[1762752403781,15.28824732,3609.7,3609.6,0.001]
[1762752403981,8.85521226,3609.7,3609.6,0.001]
[1762752406349,8.85560984,3609.7,3609.6,0.001]
[1762752409232,14.20589779,3609.7,3609.6,0.001]
[1762752409422,16.2118449,3609.7,3609.6,0.001]
[1762752410735,11.78475695,3609.7,3609.6,0.001]
[1762752410940,1.65820857,3609.7,3609.6,0.001]
[1762752411103,8.85560984,3609.7,3609.6,0.001]
[1762752411503,14.20589779,3609.7,3609.6,0.001]
[1762752411806,14.9521329,3609.7,3609.6,0.001]
[1762752412041,15.46560979,3609.7,3609.6,0.001]
[1762752413435,15.64580979,3609.7,3609.6,0.001]
[1762752413652,17.60912003,3609.7,3609.6,0.001]
[1762752413794,17.7200621,3609.7,3609.6,0.001]
[1762752415515,2.77092742,3608.9,3608.8,0.001]
[1762752415717,9.09062045,3608.9,3608.8,0.001]
[1762752415928,9.54562045,3608.9,3608.8,0.001]
[1762752416203,10.80533245,3608.9,3608.8,0.001]
[1762752417440,11.55247523,3608.9,3608.8,0.001]
[1762752417806,11.55235638,3608.9,3608.8,0.001]
[1762752418745,9.6972136,3608.9,3608.8,0.001]
[1762752419037,11.55535638,3608.9,3608.8,0.001]
[1762752419403,10.8082136,3608.9,3608.8,0.001]
[1762752420219,10.8082136,3608.9,3607.1,0.01]
[1762752420220,2.77146499,3608.2,3607.1,0.01]
[1762752420547,10.16750792,3608.2,3607.1,0.01]
[1762752420718,9.51150792,3608.2,3607.1,0.0377231]
[1762752420938,9.51150792,3608.2,3607.1,0.01]
[1762752420939,4.88742346,3608.2,3607.1,0.01]
[1762752421135,5.36082346,3608.2,3607.1,0.01]
[1762752421334,9.51150792,3608.2,3607.1,0.01]
[1762752421846,9.51150792,3608.2,3608.0,0.001]
[1762752422037,9.96650792,3608.2,3608.0,0.001]
[1762752422461,4.88742346,3608.2,3608.0,0.001]
[1762752422629,3.0307361,3608.2,3608.0,0.001]
[1762752422827,0.25927111,3608.2,3608.0,0.001]
[1762752424151,3.5041361,3608.2,3608.0,0.001]
[1762752424860,3.0307361,3608.2,3608.0,0.001]
[1762752425067,3.5041361,3608.2,3608.0,0.001]
[1762752425365,7.65482056,3608.2,3608.0,0.001]
[1762752425532,8.10982056,3608.2,3608.0,0.001]
[1762752425723,7.65482056,3608.2,3608.0,0.001]
[1762752425929,9.96539691,3608.2,3608.0,0.001]
[1762752426253,10.79777185,3608.2,3608.0,0.001]
[1762752426650,3.86311104,3608.2,3608.0,0.001]
[1762752426855,3.0307361,3608.2,3608.0,0.001]
[1762752427364,0.25927111,3608.2,3608.0,0.001]
[1762752428173,3.0307361,3608.2,3608.0,0.001]
[1762752428374,4.2904481,3608.2,3608.0,0.001]
[1762752428577,4.7638481,3608.2,3608.0,0.001]
[1762752432100,4.2904481,3608.2,3608.0,0.001]
[1762752434377,4.7638481,3608.2,3608.0,0.001]
[1762752434586,5.81444368,3608.2,3608.0,0.001]
[1762752435581,1.51898311,3608.2,3608.0,0.001]
[1762752435783,0.25927111,3608.2,3608.0,0.001]
[1762752436363,0.73267111,3608.2,3608.0,0.001]
[1762752436673,3.0307361,3608.2,3608.0,0.001]
[1762752437688,0.25927111,3608.2,3608.0,0.001]
[1762752437867,0.25927111,3608.2,3608.1,2.7815418]
[1762752438269,0.25927111,3608.2,3608.1,0.01]
[1762752438587,0.25927111,3608.2,3608.1,2.7825418]
[1762752438799,0.25927111,3608.2,3608.1,3.06089598]
[1762752439119,0.25927111,3608.2,3608.1,0.28935418]
[1762752439312,0.25927111,3608.2,3608.1,0.011]
[1762752439882,0.25927111,3608.2,3608.1,2.7825418]
[1762752440083,2.7730629,3608.8,3608.6,2.77109531]
[1762752440084,0.002,3608.8,3608.6,2.77109531]
[1762752440297,0.25876718,3608.7,3608.1,0.416504]
[1762752440493,0.002,3608.8,3608.6,2.77115778]
[1762752440699,0.25875505,3608.7,3608.6,2.77115778]
[1762752441068,0.25875505,3608.7,3608.6,2.79886935]
[1762752441296,0.25875505,3608.7,3608.6,2.77115778]
[1762752441499,0.25875505,3608.7,3608.6,3.32540445]
[1762752441892,0.002,3608.8,3608.7,2.77108099]
[1762752442094,0.26073974,3608.8,3608.7,2.77108099]
[1762752443183,0.002,3608.8,3608.7,2.77108099]
[1762752443607,0.002,3608.8,3608.7,2.79879179]
[1762752443807,0.002,3608.8,3608.7,3.41121141]
[1762752444348,0.002,3608.8,3608.7,3.38350061]
[1762752448814,0.002,3608.8,3608.7,0.61241962]
[1762752449032,0.002,3608.8,3608.6,2.77115763]
[1762752449350,0.002,3608.8,3608.7,2.77108099]
[1762752450740,0.002,3608.8,3608.2,0.405504]
[1762752450948,0.002,3608.8,3608.6,2.7711456]
[1762752451659,0.002,3608.8,3608.7,2.77108099]
[1762752452757,0.002,3608.8,3608.1,1.676216]
[1762752452965,0.002,3608.8,3608.2,0.52806662]
[1762752453260,0.002,3608.8,3608.6,2.77111201]
[1762752453444,0.002,3608.8,3608.7,2.77108099]
[1762752455359,0.002,3608.8,3608.7,2.79879179]
[1762752456578,0.002,3608.8,3608.7,2.77108099]
[1762752456755,0.002,3608.8,3608.7,3.32530595]
[1762752460876,0.002,3608.8,3608.7,3.35301675]
[1762752462042,0.002,3608.8,3608.7,7.60852075]
[1762752462245,0.002,3608.8,3608.7,7.58080995]
[1762752464272,0.002,3608.8,3608.7,7.94663013]
[1762752464782,0.002,3608.8,3608.7,7.58080995]
[1762752465348,0.002,3608.8,3608.7,3.73080995]
[1762752466018,0.002,3608.8,3608.7,3.84170281]
[1762752466798,0.002,3608.8,3608.7,5.12912561]
[1762752467097,0.002,3608.8,3608.7,5.49494579]
[1762752467780,0.002,3608.8,3608.7,6.97373981]
[1762752467975,0.002,3608.8,3608.7,6.94602901]
[1762752469001,0.002,3609.2,3609.1,4.43598987]
[1762752469201,0.002,3609.2,3609.1,5.2249332]
[1762752469999,0.002,3609.2,3609.1,5.56304565]
[1762752470501,0.002,3609.2,3609.1,5.19722547]
[1762752471000,0.002,3609.2,3609.1,9.37043556]
[1762752471201,0.002,3609.2,3609.1,9.34272783]
[1762752471802,0.002,3609.2,3609.1,5.19722547]
[1762752472004,0.002,3609.2,3609.1,9.34272783]
[1762752472774,0.002,3609.2,3609.1,9.70854801]
[1762752475000,0.002,3609.2,3609.1,9.98424624]
[1762752475187,0.002,3609.2,3609.1,14.40544683]
[1762752475592,0.002,3609.2,3609.1,14.51631049]
[1762752475787,0.002,3609.2,3609.1,10.0951099]
[1762752476194,0.002,3609.2,3609.1,14.51631049]
[1762752483936,1e-08,3609.6,3609.5,3.17597082]
[1762752484100,1e-08,3609.6,3609.5,13.16911685]
[1762752484435,1e-08,3609.6,3609.5,16.99141219]
[1762752484762,1e-08,3609.6,3609.5,18.36197772]
[1762752484913,1e-08,3609.6,3609.5,21.27997772]
[1762752485635,1e-08,3610.0,3609.9,3.17566383]
[1762752485934,1e-08,3610.0,3609.9,13.68762964]
[1762752486338,1e-08,3610.0,3609.9,13.79847364]
[1762752486729,1e-08,3610.0,3609.9,9.94847364]
[1762752488931,0.002,3610.5,3609.9,9.94847364]
[1762752488932,0.002,3610.5,3610.4,4.4349922]
[1762752489114,0.002,3610.5,3610.4,9.25921297]
[1762752489616,0.002,3610.5,3610.4,8.85619279]
[1762752490412,0.002,3610.5,3610.4,13.27739338]
[1762752490616,0.002,3610.5,3610.4,13.68041356]
[1762752490812,0.002,3610.5,3610.4,15.64928184]
[1762752491116,0.002,3610.5,3610.4,11.22808125]
[1762752492145,0.002,3610.5,3610.4,10.82506107]
[1762752493241,0.002,3610.5,3610.4,15.24626166]
[1762752493437,0.002,3610.5,3610.4,15.64928184]
[1762752493654,0.002,3610.5,3610.4,16.11768184]
[1762752494950,0.002,3610.5,3610.4,19.03568184]
[1762752495241,0.002,3610.5,3610.4,16.11768184]
[1762752496752,0.002,3610.5,3610.4,15.71466166]
[1762752497080,0.002,3610.5,3610.4,16.11768184]
[1762752498071,1e-08,3610.9,3610.8,6.09297336]
[1762752498233,1e-08,3610.9,3610.8,10.51417395]
[1762752498441,1e-08,3610.9,3610.8,10.91719413]
[1762752498760,1e-08,3610.9,3610.8,11.02800681]
[1762752498962,1e-08,3610.9,3610.8,15.4492074]
[1762752499166,1e-08,3610.9,3610.8,17.89208051]
[1762752499849,1e-08,3610.9,3610.8,14.97408051]
[1762752500641,1e-08,3610.9,3610.8,20.08379251]
[1762752503171,0.002,3611.1,3611.0,3.17481997]
[1762752503473,0.002,3611.1,3611.0,13.67995333]
[1762752503634,0.002,3611.1,3611.0,16.25983357]
[1762752504064,0.002,3611.1,3611.0,16.37064134]
[1762752504670,0.4987,3611.1,3611.0,6.71971598]
[1762752504969,0.9536,3611.1,3611.0,6.60890821]
[1762752505369,0.9536,3611.1,3611.0,7.01441221]
[1762752506441,0.9536,3611.1,3611.0,4.43453197]
[1762752507072,0.4987,3611.1,3610.9,0.4987]
[1762752507302,0.9364,3611.0,3610.9,2.76936349]
[1762752507572,0.9364,3611.0,3610.9,4.43457949]
[1762752507940,0.9364,3611.0,3610.9,1.665216]
[1762752508154,0.9364,3611.0,3610.9,2.76939267]
[1762752508546,0.9364,3611.0,3610.9,3.17489667]
[1762752508748,0.9364,3611.0,3610.6,1.259712]
[1762752508961,0.4549,3610.9,3610.8,3.17497336]
[1762752509375,1.123,3610.9,3610.8,3.17497336]
[1762752511391,1.123,3610.9,3610.8,3.17597336]
[1762752517003,1.123,3610.9,3610.8,0.001]